bitfinex-derivatives/quotes_BTCF0:USTF0_20241023
["timestamp","ask_amount","ask_price","bid_price","bid_amount"]
[1729651923729,0.059594,67157.0,67156.0,0.059595]
[1729651923913,0.229594,67157.0,67156.0,0.15482112]
[1729651924222,0.229594,67157.0,67156.0,0.13402852]
[1729651924527,0.229594,67157.0,67156.0,0.059595]
[1729651924724,0.229594,67157.0,67156.0,0.13402852]
[1729651925120,0.229594,67157.0,67156.0,0.059595]
[1729651925419,0.229594,67157.0,67156.0,0.13402852]
[1729651926923,0.229594,67157.0,67156.0,0.22922385]
[1729651927221,0.229594,67157.0,67156.0,0.15479033]
[1729651927817,0.3608,67159.0,67158.0,0.059593]
[1729651928126,0.3608,67159.0,67158.0,0.32466829]
[1729651928626,0.3608,67159.0,67158.0,0.49124131]
[1729651929021,0.3608,67159.0,67158.0,0.32124131]
[1729651929226,0.3608,67159.0,67158.0,0.23196829]
[1729651930117,0.3608,67161.0,67158.0,0.17237529]
[1729651930423,0.3608,67161.0,67160.0,0.059592]
[1729651930625,0.3608,67161.0,67160.0,0.15466729]
[1729651933134,0.3608,67161.0,67160.0,0.1545581]
[1729651935024,0.420391,67161.0,67160.0,0.16940809]
[1729651935227,0.059592,67160.0,67158.0,0.07444199]
[1729651935530,0.059594,67157.0,67156.0,0.07444199]
[1729651935731,0.229594,67157.0,67156.0,0.16963499]
[1729651936130,0.229594,67157.0,67156.0,0.07444199]
[1729651936337,0.229594,67157.0,67156.0,0.09520695]
[1729651936540,0.229594,67157.0,67156.0,0.16964826]
[1729651936724,0.229594,67157.0,67156.0,0.07444131]
[1729651937125,0.229594,67157.0,67156.0,0.16965434]
[1729651937532,0.17,67157.0,67155.0,0.13403731]
[1729651937838,0.229594,67157.0,67156.0,0.16970457]
[1729651940135,0.229594,67157.0,67156.0,0.09526326]
[1729651940526,0.229594,67157.0,67156.0,0.16970462]
[1729651940731,0.229594,67157.0,67155.0,0.13403736]
[1729651940732,0.059595,67156.0,67155.0,0.13403736]
[1729651941128,0.059595,67156.0,67155.0,0.22940059]
[1729651941331,0.059595,67156.0,67155.0,0.059596]
[1729651943243,0.059596,67155.0,67154.0,0.07444136]
[1729651943438,0.420396,67155.0,67154.0,0.07444136]
[1729651943634,0.059597,67154.0,67153.0,0.07444136]
[1729651943836,0.229597,67154.0,67153.0,0.07444136]
[1729651944033,0.229597,67154.0,67153.0,0.16979463]
[1729651944230,0.229597,67154.0,67153.0,0.07444136]
[1729651945562,0.059598,67153.0,67152.0,0.07444136]
[1729651945760,0.229598,67153.0,67152.0,0.16974421]
[1729651946149,0.590398,67153.0,67152.0,0.09530289]
[1729651946460,0.590398,67153.0,67152.0,0.16973585]
[1729651946649,0.7008,67153.0,67151.0,0.07443296]
[1729651946843,0.212099,67152.0,67148.0,0.07443664]
[1729651947049,0.5308,67149.0,67148.0,0.05955535]
[1729651947245,0.059602,67148.0,67147.0,0.05955535]
[1729651947445,0.17,67148.0,67145.0,0.05955535]
[1729651947646,0.059605,67145.0,67144.0,0.05955535]
[1729651947954,0.590405,67145.0,67144.0,0.05955535]
[1729651948151,0.059608,67141.0,67140.0,0.059609]
[1729651948454,0.229608,67141.0,67140.0,0.15477101]
[1729651949658,0.229608,67141.0,67140.0,0.059609]
[1729651950546,0.229608,67141.0,67140.0,0.15457988]
[1729651950950,0.229608,67141.0,67140.0,0.059609]
[1729651951344,0.229608,67141.0,67140.0,0.15462809]
[1729651952150,0.229608,67141.0,67140.0,0.059609]
[1729651953954,0.229608,67141.0,67136.0,0.02161277]
[1729651953955,0.17,67144.0,67136.0,0.02161277]
[1729651954154,0.17,67144.0,67143.0,0.059607]
[1729651954560,0.229606,67144.0,67143.0,0.059607]
[1729651957966,0.3608,67145.0,67135.0,0.1916573]
[1729651958164,0.5308,67145.0,67144.0,0.059606]
[1729651958357,0.3608,67145.0,67144.0,0.059606]
[1729651958560,0.5308,67145.0,67144.0,0.059606]
[1729651961259,0.17,67145.0,67144.0,0.059606]
[1729651962667,0.3608,67146.0,67145.0,0.059605]
[1729651962851,0.3608,67154.0,67145.0,0.09479053]
[1729651963162,0.3608,67154.0,67153.0,0.059598]
[1729651966653,0.3608,67162.0,67161.0,0.059591]
[1729651966849,0.3608,67162.0,67161.0,0.229591]
[1729651967059,0.3608,67162.0,67161.0,0.32364406]
[1729651968455,0.3608,67162.0,67161.0,0.32355941]
[1729651970558,0.3608,67167.0,67164.0,0.059587]
[1729651970766,0.3608,67167.0,67166.0,0.059586]
[1729651970962,0.420385,67167.0,67166.0,0.059586]
[1729651971267,0.420385,67167.0,67166.0,0.10415436]
[1729651971768,0.420385,67167.0,67166.0,0.059586]
[1729651972366,0.420385,67167.0,67166.0,0.10414739]
[1729651972771,0.420385,67167.0,67166.0,0.059586]
[1729651972970,0.420391,67167.0,67166.0,0.10414051]
[1729651973268,0.420391,67167.0,67166.0,0.10414164]
[1729651973570,0.420391,67167.0,67166.0,0.059586]
[1729651976670,0.46040122,67167.0,67166.0,0.059586]
[1729651980577,0.46047043,67167.0,67166.0,0.059586]
[1729651980781,0.059599,67160.0,67159.0,0.059598]
[1729651980974,0.40094359,67160.0,67155.0,0.10132011]
[1729651981172,0.17,67156.0,67155.0,0.139202]
[1729651981479,0.17,67156.0,67143.0,0.10556]
[1729651981480,0.21014359,67156.0,67143.0,0.10556]
[1729651981668,0.17,67145.0,67144.0,0.059612]
[1729651981874,0.20938923,67145.0,67144.0,0.059612]
[1729651982173,0.03938923,67145.0,67144.0,0.059612]
[1729651982567,0.3608,67146.0,67145.0,0.059611]
[1729651984070,0.3608,67146.0,67145.0,0.08059465]
[1729651985079,0.3608,67146.0,67145.0,0.14002649]
[1729651985381,0.3608,67146.0,67145.0,0.08059465]
[1729651987879,0.3608,67146.0,67145.0,0.14002649]
[1729651988486,0.3608,67146.0,67145.0,0.14003099]
[1729651988681,0.3608,67146.0,67145.0,0.08059465]
[1729651990094,0.3608,67146.0,67145.0,0.25059465]
[1729651990975,0.3608,67146.0,67145.0,0.32482751]
[1729651991577,0.3608,67146.0,67145.0,0.25059465]
[1729651992680,0.3608,67146.0,67145.0,0.2951768]
[1729651993072,0.3608,67146.0,67145.0,0.25059465]
[1729651994083,0.3608,67160.0,67159.0,0.059598]
[1729651994279,0.3608,67160.0,67159.0,0.229598]
[1729652000096,0.3608,67160.0,67159.0,0.059598]
[1729652000488,0.3608,67160.0,67159.0,0.08109383]
[1729652002585,0.17,67166.0,67159.0,0.19149583]
[1729652002785,0.17,67166.0,67165.0,0.059593]
[1729652002991,0.17,67166.0,67165.0,0.11904771]
[1729652003186,0.17,67166.0,67165.0,0.059593]
[1729652003785,0.229592,67166.0,67165.0,0.059593]
[1729652006694,0.229592,67166.0,67162.0,0.059596]
[1729652006695,0.059595,67163.0,67162.0,0.059596]
[1729652006887,0.09967855,67163.0,67162.0,0.059596]
[1729652007798,0.059595,67163.0,67162.0,0.059596]
[1729652008297,0.09971985,67163.0,67162.0,0.059596]
[1729652009088,0.09971985,67163.0,67158.0,0.059599]
[1729652009089,0.0596,67159.0,67158.0,0.059599]
[1729652009296,0.26972485,67159.0,67158.0,0.059599]
[1729652009598,0.059602,67155.0,67154.0,0.059603]
[1729652009804,0.26972685,67155.0,67154.0,0.059603]
[1729652012602,0.26944278,67155.0,67154.0,0.059603]
[1729652013804,0.229602,67155.0,67154.0,0.059603]
[1729652014897,0.229602,67155.0,67154.0,0.11905771]
[1729652015602,0.229602,67155.0,67154.0,0.11908727]
[1729652016605,0.229602,67155.0,67152.0,0.1190964]
[1729652016803,0.229602,67155.0,67154.0,0.04462023]
[1729652019904,0.229602,67155.0,67153.0,0.0594924]
[1729652019905,0.17,67155.0,67153.0,0.0594924]
[1729652020213,0.420401,67157.0,67155.0,0.059602]
[1729652020396,0.420401,67157.0,67156.0,0.059601]
[1729652020601,0.420401,67157.0,67156.0,0.1190934]
[1729652021802,0.420401,67157.0,67156.0,0.059601]
[1729652026314,0.169601,67157.0,67156.0,0.059601]
[1729652029006,0.169601,67157.0,67156.0,0.11912199]
[1729652029410,0.169601,67157.0,67156.0,0.08140226]
[1729652029610,0.059597,67161.0,67159.0,0.059598]
[1729652029911,0.059597,67161.0,67156.0,0.02180126]
[1729652029912,0.3608,67163.0,67162.0,0.059596]
[1729652030507,0.3608,67163.0,67162.0,0.19721715]
[1729652030912,0.3608,67163.0,67162.0,0.137696]
[1729652033519,0.420395,67163.0,67162.0,0.137696]
[1729652040420,0.420395,67163.0,67162.0,0.0781]
[1729652041419,0.420395,67163.0,67162.0,0.12275844]
[1729652043417,0.420395,67163.0,67162.0,0.18235444]
[1729652043924,0.70714306,67163.0,67162.0,0.137696]
[1729652044827,0.70714306,67163.0,67162.0,0.0781]
[1729652046432,0.56001788,67163.0,67162.0,0.0781]
[1729652047626,0.56001788,67163.0,67162.0,0.137696]
[1729652049728,0.46693596,67163.0,67162.0,0.0781]
[1729652049926,0.55999444,67163.0,67162.0,0.0781]
[1729652050129,0.55999444,67163.0,67158.0,0.244799]
[1729652050130,0.44741176,67163.0,67158.0,0.059599]
[1729652050333,0.169598,67159.0,67158.0,0.059599]
[1729652050524,0.25620976,67159.0,67158.0,0.059599]
[1729652050927,0.169598,67159.0,67158.0,0.059599]
[1729652053333,0.11,67162.0,67161.0,0.059596]
[1729652053527,0.169596,67162.0,67161.0,0.059596]
[1729652053834,0.059596,67162.0,67161.0,0.059596]
[1729652055130,0.420396,67162.0,67161.0,0.059596]
[1729652055631,0.02194668,67168.0,67161.0,0.169596]
[1729652055632,0.059592,67166.0,67161.0,0.169596]
[1729652055830,0.059592,67166.0,67165.0,0.059593]
[1729652056024,0.3608,67168.0,67164.0,0.11]
[1729652056224,0.3608,67168.0,67167.0,0.059591]
[1729652057135,0.3608,67168.0,67167.0,0.169591]
[1729652057331,0.3608,67168.0,67167.0,0.059591]
[1729652058129,0.3608,67168.0,67162.0,0.13382786]
[1729652058436,0.059595,67163.0,67162.0,0.13382786]
[1729652059541,0.059595,67163.0,67162.0,0.07423286]
[1729652059729,0.11,67165.0,67161.0,0.07423286]
[1729652059730,0.059596,67162.0,67161.0,0.07423286]
[1729652059927,0.169596,67162.0,67161.0,0.07423286]
[1729652061238,0.4708,67162.0,67159.0,0.059598]
[1729652061539,0.11,67162.0,67159.0,0.059598]
[1729652061731,0.059598,67160.0,67159.0,0.059598]
[1729652065927,0.14590272,67160.0,67159.0,0.059598]
[1729652066632,0.09953453,67160.0,67159.0,0.059598]
[1729652066835,0.14590244,67160.0,67159.0,0.059598]
[1729652067041,0.09953453,67160.0,67159.0,0.059598]
[1729652067944,0.1458776,67160.0,67159.0,0.059598]
[1729652072646,0.19866612,67160.0,67159.0,0.059598]
[1729652073343,0.22056672,67160.0,67159.0,0.059598]
[1729652073547,0.22056672,67160.0,67156.0,0.10240126]
[1729652073548,0.0596,67157.0,67156.0,0.10240126]
[1729652073742,0.0596,67157.0,67156.0,0.16200226]
[1729652073743,0.1696,67157.0,67156.0,0.16200226]
[1729652081048,0.20944111,67157.0,67156.0,0.16200226]
[1729652082144,0.059605,67153.0,67152.0,0.059605]
[1729652082331,0.20944611,67153.0,67152.0,0.059605]
[1729652084945,0.14984111,67153.0,67152.0,0.059605]
[1729652086841,0.03984111,67153.0,67152.0,0.059605]
[1729652087841,0.14984111,67153.0,67152.0,0.059605]
[1729652088850,0.14984462,67153.0,67152.0,0.059605]
[1729652089043,0.11,67153.0,67152.0,0.1542318]
[1729652096162,0.19589114,67153.0,67152.0,0.059605]
[1729652097960,0.1959777,67153.0,67152.0,0.059605]
[1729652099357,0.2555817,67153.0,67152.0,0.059605]
[1729652100056,0.30809961,67153.0,67152.0,0.059605]
[1729652100258,0.30809961,67153.0,67150.0,0.082]
[1729652100259,0.059606,67151.0,67150.0,0.082]
[1729652100647,0.19810161,67151.0,67150.0,0.082]
[1729652101049,0.1455837,67151.0,67150.0,0.082]
[1729652102571,0.1455837,67151.0,67150.0,0.141606]
[1729652104163,0.169606,67151.0,67150.0,0.141606]
[1729652104672,0.420402,67155.0,67154.0,0.059603]
[1729652104871,0.530402,67155.0,67154.0,0.11919921]
[1729652105058,0.530402,67155.0,67154.0,0.059603]
[1729652106257,0.059605,67152.0,67151.0,0.07449523]
[1729652106457,0.11,67151.0,67150.0,0.21609567]
[1729652106663,0.11,67151.0,67150.0,0.31117371]
[1729652106865,0.11,67151.0,67150.0,0.21609567]
[1729652107066,0.11,67151.0,67150.0,0.31119772]
[1729652107368,0.11,67151.0,67150.0,0.21609567]
[1729652107552,0.11,67151.0,67150.0,0.21609494]
[1729652107757,0.11,67151.0,67150.0,0.23671987]
[1729652108271,0.059605,67152.0,67151.0,0.059606]
[1729652108460,0.169605,67152.0,67151.0,0.22920887]
[1729652108656,0.169605,67152.0,67151.0,0.059606]
[1729652109169,0.169605,67152.0,67151.0,0.15469524]
[1729652109368,0.169605,67152.0,67151.0,0.22916417]
[1729652109561,0.169605,67152.0,67151.0,0.13409384]
[1729652109866,0.169605,67152.0,67151.0,0.22912454]
[1729652110268,0.169605,67152.0,67151.0,0.059606]
[1729652110468,0.169605,67152.0,67151.0,0.22910044]
[1729652110972,0.169605,67152.0,67151.0,0.059606]
[1729652111166,0.20895427,67152.0,67151.0,0.059606]
[1729652112162,0.25477336,67152.0,67151.0,0.059606]
[1729652119179,0.169605,67152.0,67151.0,0.15458492]
[1729652119381,0.169605,67152.0,67151.0,0.22908107]
[1729652119582,0.169605,67152.0,67151.0,0.15458492]
[1729652121275,0.3608,67155.0,67151.0,0.09497892]
[1729652121472,0.3608,67155.0,67154.0,0.13409827]
[1729652121683,0.3608,67155.0,67154.0,0.15458192]
[1729652121868,0.530402,67155.0,67154.0,0.1694754]
[1729652122068,0.059605,67152.0,67151.0,0.07449648]
[1729652122368,0.059605,67152.0,67150.0,0.15649648]
[1729652122369,0.059606,67151.0,67150.0,0.15649648]
[1729652122681,0.059606,67151.0,67150.0,0.25178217]
[1729652123477,0.059606,67151.0,67150.0,0.2516233]
[1729652123665,0.059606,67151.0,67150.0,0.17712682]
[1729652124168,0.059606,67151.0,67150.0,0.23673282]
[1729652124982,0.169606,67151.0,67150.0,0.23673282]
[1729652125178,0.059606,67151.0,67150.0,0.2366744]
[1729652125675,0.169606,67151.0,67150.0,0.2366744]
[1729652133087,0.059606,67150.0,67149.0,0.07452362]
[1729652133278,0.059606,67150.0,67149.0,0.16966525]
[1729652133574,0.11,67151.0,67148.0,0.07452362]
[1729652133575,0.059607,67149.0,67148.0,0.07452362]
[1729652133783,0.169607,67149.0,67148.0,0.07452362]
[1729652134089,0.19483269,67149.0,67146.0,0.05961]
[1729652134269,0.059609,67147.0,67146.0,0.05961]
[1729652134474,0.09886437,67147.0,67146.0,0.05961]
[1729652134673,0.20886437,67147.0,67146.0,0.05961]
[1729652134890,0.14925537,67147.0,67146.0,0.05961]
[1729652135476,0.03925537,67147.0,67146.0,0.05961]
[1729652141182,0.11,67148.0,67147.0,0.059609]
[1729652141394,0.11,67148.0,67147.0,0.15476838]
[1729652143695,0.11,67148.0,67147.0,0.26817128]
[1729652144396,0.11,67148.0,67147.0,0.26810743]
[1729652144895,0.11,67148.0,67147.0,0.24415104]
[1729652148287,0.11,67148.0,67147.0,0.15472856]
[1729652148692,0.169608,67148.0,67147.0,0.15472856]
[1729652149100,0.169608,67148.0,67147.0,0.15480699]
[1729652154094,0.169608,67148.0,67147.0,0.15478368]
[1729652156290,0.20900642,67148.0,67147.0,0.059609]
[1729652156807,0.14939842,67148.0,67143.0,0.46521732]
[1729652157109,0.169612,67144.0,67143.0,0.52402932]
[1729652157408,0.20901042,67144.0,67143.0,0.52402932]
[1729652164305,0.169612,67144.0,67143.0,0.70863324]
[1729652165507,0.169612,67144.0,67143.0,0.61921076]
[1729652167500,0.11,67146.0,67145.0,0.059611]
[1729652167811,0.11,67146.0,67145.0,0.15479244]
[1729652171012,0.16961,67146.0,67145.0,0.15479244]
[1729652171403,0.16961,67146.0,67145.0,0.059611]
[1729652179314,0.16961,67146.0,67145.0,0.15478263]
[1729652181315,0.16961,67146.0,67145.0,0.24420511]
[1729652181631,0.16961,67146.0,67145.0,0.15488591]
[1729652181922,0.16961,67146.0,67145.0,0.24430839]
[1729652182110,0.16961,67146.0,67145.0,0.15488591]
[1729652182607,0.16961,67146.0,67145.0,0.24430839]
[1729652183024,0.16961,67146.0,67145.0,0.15488591]
[1729652183219,0.16961,67146.0,67145.0,0.24430839]
[1729652183911,0.16961,67146.0,67145.0,0.24433208]
[1729652184519,0.16961,67146.0,67145.0,0.24433404]
[1729652184825,0.16961,67146.0,67145.0,0.15488591]
[1729652186412,0.16961,67146.0,67145.0,0.059611]
[1729652192115,0.059612,67144.0,67143.0,0.0822]
[1729652192318,0.059612,67144.0,67139.0,0.04472773]
[1729652192319,0.169612,67144.0,67139.0,0.04472773]
[1729652192526,0.4708,67140.0,67136.0,0.04472773]
[1729652192732,0.059619,67136.0,67135.0,0.05962]
[1729652193417,0.05962,67135.0,67134.0,0.0821]
[1729652193619,0.05962,67135.0,67134.0,0.0210977]
[1729652193832,0.059621,67134.0,67133.0,0.00223406]
[1729652194029,0.169621,67134.0,67133.0,0.00223406]
[1729652194418,0.169621,67134.0,67133.0,0.15741055]
[1729652195720,0.169621,67134.0,67133.0,0.17858557]
[1729652197430,0.169621,67134.0,67133.0,0.11896357]
[1729652198024,0.169621,67134.0,67133.0,0.19340189]
[1729652199428,0.169621,67134.0,67133.0,0.19116783]
[1729652200134,0.169621,67134.0,67133.0,0.09561334]
[1729652201133,0.169621,67134.0,67133.0,0.02117502]
[1729652201134,0.059621,67134.0,67133.0,0.02117502]
[1729652201322,0.11,67134.0,67133.0,0.059622]
[1729652201723,0.11,67134.0,67133.0,0.13406032]
[1729652202121,0.11,67134.0,67133.0,0.059622]
[1729652203427,0.11,67134.0,67133.0,0.22963463]
[1729652203643,0.11,67134.0,67133.0,0.15519631]
[1729652204441,0.059616,67140.0,67133.0,0.09557431]
[1729652204631,0.059616,67140.0,67139.0,0.0595172]
[1729652204632,0.169616,67140.0,67139.0,0.0595172]
[1729652204832,0.059616,67140.0,67138.0,0.1191342]
[1729652205032,0.059616,67140.0,67139.0,0.0771]
[1729652205347,0.059616,67140.0,67139.0,0.1366172]
[1729652205544,0.059616,67140.0,67139.0,0.0771]
[1729652205842,0.279616,67140.0,67139.0,0.1366172]
[1729652206438,0.279616,67140.0,67139.0,0.0771]
[1729652206634,0.279616,67140.0,67139.0,0.1366172]
[1729652208241,0.169616,67140.0,67139.0,0.1366172]
[1729652208428,0.169616,67140.0,67139.0,0.0771]
[1729652208632,0.169616,67140.0,67139.0,0.13661987]
[1729652208845,0.169616,67140.0,67139.0,0.136716]
[1729652209045,0.169616,67140.0,67139.0,0.19623492]
[1729652209640,0.169616,67140.0,67139.0,0.136716]
[1729652210741,0.279616,67140.0,67139.0,0.136716]
[1729652211140,0.279616,67140.0,67139.0,0.0771]
[1729652217246,0.22,67140.0,67137.0,0.059618]
[1729652217551,0.22,67140.0,67135.0,0.07439651]
[1729652217552,0.059619,67136.0,67135.0,0.07439651]
[1729652217745,0.169619,67136.0,67135.0,0.07439651]
[1729652220159,0.05962,67135.0,67134.0,0.059621]
[1729652221155,0.05962,67135.0,67129.0,0.0822]
[1729652221156,0.059623,67132.0,67131.0,0.059623]
[1729652221355,0.059623,67131.0,67129.0,0.141825]
[1729652221854,0.059623,67131.0,67130.0,0.14907708]
[1729652222048,0.059623,67131.0,67130.0,0.15560473]
[1729652222243,0.059623,67131.0,67130.0,0.2700693]
[1729652224446,0.059623,67131.0,67130.0,0.059624]
[1729652231447,0.059623,67131.0,67130.0,0.15559262]
[1729652232460,0.02190095,67137.0,67130.0,0.09596862]
[1729652232646,0.059621,67134.0,67133.0,0.059621]
[1729652232851,0.059621,67134.0,67133.0,0.15558962]
[1729652233760,0.169621,67134.0,67133.0,0.15558962]
[1729652235756,0.169621,67134.0,67133.0,0.15566518]
[1729652236464,0.3608,67138.0,67133.0,0.09604418]
[1729652236668,0.420417,67138.0,67137.0,0.059618]
[1729652237964,0.4708,67138.0,67136.0,0.0745249]
[1729652238156,0.059618,67137.0,67136.0,0.0745249]
[1729652238457,0.059618,67137.0,67136.0,0.17060533]
[1729652238760,0.059618,67137.0,67136.0,0.15569943]
[1729652239351,0.059618,67137.0,67136.0,0.2302349]
[1729652240359,0.059618,67137.0,67136.0,0.15569943]
[1729652240873,0.059618,67137.0,67136.0,0.23023576]
[1729652242160,0.059618,67137.0,67136.0,0.15569943]
[1729652242459,0.059618,67137.0,67136.0,0.23023733]
[1729652242664,0.059618,67137.0,67136.0,0.15569943]
[1729652243060,0.059618,67137.0,67136.0,0.09608043]
[1729652243762,0.169618,67137.0,67136.0,0.09608043]
[1729652246766,0.059621,67135.0,67134.0,0.05962]
[1729652247067,0.169621,67135.0,67134.0,0.05962]
[1729652253767,0.169621,67135.0,67134.0,0.15572884]
[1729652254165,0.279621,67135.0,67134.0,0.09610884]
[1729652254469,0.059622,67132.0,67131.0,0.07456055]
[1729652254657,0.059624,67130.0,67129.0,0.07456055]
[1729652254862,0.059625,67129.0,67128.0,0.07456055]
[1729652255070,0.420425,67129.0,67128.0,0.07456055]
[1729652255271,0.059626,67128.0,67127.0,0.07476055]
[1729652256274,0.059626,67128.0,67127.0,0.0002]
[1729652256469,0.059626,67128.0,67127.0,0.07476055]
[1729652256764,0.059626,67128.0,67127.0,0.0002]
[1729652259275,0.059626,67128.0,67127.0,0.0746853]
[1729652260471,0.059626,67128.0,67127.0,0.1343123]
[1729652260672,0.059626,67128.0,67127.0,0.2907123]
[1729652261569,0.059626,67128.0,67127.0,0.216227]
[1729652261875,0.059626,67128.0,67127.0,0.23750031]
[1729652263973,0.169626,67128.0,67127.0,0.23750031]
[1729652265784,0.169626,67128.0,67127.0,0.29707295]
[1729652265968,0.169626,67128.0,67127.0,0.23750031]
[1729652268674,0.169626,67128.0,67127.0,0.31198561]
[1729652269272,0.169626,67128.0,67127.0,0.33310506]
[1729652271781,0.169626,67128.0,67127.0,0.31183175]
[1729652271971,0.169626,67128.0,67127.0,0.216227]
[1729652272378,0.169626,67128.0,67127.0,0.38637539]
[1729652273982,0.169626,67128.0,67127.0,0.216227]
[1729652275877,0.169626,67128.0,67127.0,0.29069236]
[1729652276185,0.169626,67128.0,67127.0,0.31187843]
[1729652276383,0.169626,67128.0,67127.0,0.29070334]
[1729652276975,0.169626,67128.0,67127.0,0.216227]
[1729652282386,0.169626,67128.0,67127.0,0.26094015]
[1729652282579,0.169626,67128.0,67127.0,0.18374015]
[1729652282779,0.169626,67128.0,67127.0,0.10454015]
[1729652283181,0.169626,67128.0,67127.0,0.059827]
[1729652283483,0.169626,67128.0,67127.0,0.10454922]
[1729652283681,0.169626,67128.0,67127.0,0.059827]
[1729652284191,0.059626,67128.0,67127.0,0.15555162]
[1729652284494,0.169626,67128.0,67127.0,0.15555162]
[1729652284875,0.169626,67128.0,67127.0,0.15554302]
[1729652285078,0.169626,67128.0,67127.0,0.24498726]
[1729652285275,0.169626,67128.0,67127.0,0.15554302]
[1729652288191,0.169626,67128.0,67127.0,0.15565365]
[1729652289195,0.169626,67128.0,67127.0,0.24509789]
[1729652289595,0.169626,67128.0,67127.0,0.15565365]
[1729652292103,0.169626,67128.0,67127.0,0.13439484]
[1729652293500,0.169626,67128.0,67127.0,0.23022228]
[1729652294206,0.169626,67128.0,67127.0,0.13439484]
[1729652296203,0.3608,67132.0,67127.0,0.07476784]
[1729652296406,0.420423,67132.0,67131.0,0.059623]
[1729652299202,0.420423,67132.0,67131.0,0.15539072]
[1729652307809,0.420423,67132.0,67131.0,0.059623]
[1729652308011,0.420423,67132.0,67131.0,0.15538548]
[1729652308311,0.059623,67132.0,67131.0,0.15538548]
[1729652308512,0.420423,67132.0,67131.0,0.15538548]
[1729652311717,0.059623,67132.0,67131.0,0.15538548]
[1729652311900,0.420423,67132.0,67131.0,0.15538548]
[1729652315923,0.420423,67132.0,67131.0,0.13417988]
[1729652316310,0.420423,67132.0,67131.0,0.07455688]
[1729652317916,0.420423,67132.0,67131.0,0.13417988]
[1729652324231,0.420423,67132.0,67131.0,0.22994724]
[1729652324428,0.420423,67132.0,67131.0,0.15539036]
[1729652325223,0.059623,67132.0,67131.0,0.15539036]
[1729652327421,0.059619,67136.0,67135.0,0.059618]
[1729652327628,0.059619,67136.0,67135.0,0.15521618]
[1729652327839,0.169619,67136.0,67135.0,0.15521618]
[1729652328926,0.11,67137.0,67135.0,0.09559818]
[1729652329131,0.169619,67137.0,67136.0,0.15521718]
[1729652330229,0.169619,67137.0,67136.0,0.22974515]
[1729652333223,0.169619,67137.0,67136.0,0.13414697]
[1729652334224,0.169619,67137.0,67136.0,0.059619]
[1729652335534,0.169619,67137.0,67136.0,0.08111603]
[1729652335933,0.169619,67137.0,67136.0,0.02149703]
[1729652336128,0.11,67137.0,67133.0,0.138121]
[1729652336329,0.169621,67134.0,67133.0,0.138121]
[1729652339530,0.169621,67134.0,67133.0,0.15960085]
[1729652344442,0.169621,67134.0,67133.0,0.25494702]
[1729652350238,0.169621,67134.0,67133.0,0.25492998]
[1729652351337,0.169621,67134.0,67133.0,0.15960085]
[1729652353453,0.169621,67134.0,67133.0,0.02147985]
[1729652353749,0.059624,67130.0,67129.0,0.059625]
[1729652354046,0.169624,67130.0,67129.0,0.059625]
[1729652359358,0.169624,67130.0,67129.0,0.24459887]
[1729652363953,0.169624,67130.0,67129.0,0.15512073]
[1729652364353,0.11,67130.0,67129.0,0.15512073]
[1729652364651,0.11,67133.0,67132.0,0.059622]
[1729652364851,0.11,67133.0,67132.0,0.15499522]
[1729652365153,0.11,67133.0,67132.0,0.15498504]
[1729652365955,0.169621,67133.0,67132.0,0.15498504]
[1729652366351,0.169621,67133.0,67132.0,0.22946004]
[1729652366544,0.169621,67133.0,67132.0,0.059622]
[1729652367347,0.169621,67133.0,67132.0,0.13414694]
[1729652368353,0.059621,67133.0,67132.0,0.13414694]
[1729652368859,0.3608,67134.0,67133.0,0.059621]
[1729652369347,0.11,67136.0,67132.0,0.23082494]
[1729652369542,0.11,67136.0,67135.0,0.05962]
[1729652369749,0.169619,67136.0,67135.0,0.05962]
[1729652374362,0.169619,67136.0,67135.0,0.15478243]
[1729652374664,0.169619,67136.0,67135.0,0.15478124]
[1729652375662,0.169619,67136.0,67135.0,0.17665418]
[1729652379155,0.169619,67136.0,67135.0,0.25485418]
[1729652379358,0.169619,67136.0,67135.0,0.25480187]
[1729652381356,0.169619,67136.0,67135.0,0.15969294]
[1729652389263,0.169619,67136.0,67135.0,0.25477317]
[1729652393967,0.169619,67136.0,67135.0,0.2548137]
[1729652396078,0.169619,67136.0,67135.0,0.25484265]
[1729652401183,0.169619,67136.0,67135.0,0.17334971]
[1729652401681,0.169619,67136.0,67135.0,0.09514971]
[1729652401883,0.279619,67136.0,67135.0,0.09514971]
[1729652402069,0.279619,67136.0,67127.0,0.0775]
[1729652402070,0.059621,67134.0,67131.0,0.07456745]
[1729652402270,0.640422,67132.0,67131.0,0.07456745]
[1729652402479,0.640422,67132.0,67131.0,0.05962746]
[1729652402666,0.059623,67131.0,67130.0,0.05962746]
[1729652402877,0.059626,67128.0,67127.0,0.0002]
[1729652403085,0.279626,67128.0,67127.0,0.0002]
[1729652404980,0.279626,67128.0,67122.0,0.0002]
[1729652404981,0.05963,67123.0,67122.0,0.0002]
[1729652405168,0.05963,67123.0,67120.0,0.0002]
[1729652405169,0.059631,67122.0,67120.0,0.0002]
[1729652405373,0.68012,67123.0,67120.0,0.0002]
[1729652405374,0.059632,67121.0,67120.0,0.0002]
[1729652405573,0.420432,67121.0,67120.0,0.0002]
[1729652406175,0.420432,67121.0,67115.0,0.02150115]
[1729652406375,0.420432,67121.0,67112.0,0.0006]
[1729652406376,0.22,67117.0,67112.0,0.0006]
[1729652406582,0.420437,67115.0,67112.0,0.0006]
[1729652406882,0.530437,67115.0,67112.0,0.0006]
[1729652407781,0.640437,67115.0,67112.0,0.0006]
[1729652408083,0.530437,67115.0,67112.0,0.0006]
[1729652408384,0.640437,67115.0,67112.0,0.0006]
[1729652408586,0.530437,67115.0,67112.0,0.0006]
[1729652409177,0.420437,67115.0,67112.0,0.0006]
[1729652409381,0.530437,67115.0,67112.0,0.0006]
[1729652409583,0.4708,67115.0,67112.0,0.0006]
[1729652409779,0.4708,67115.0,67114.0,0.059838]
[1729652410783,0.5808,67115.0,67114.0,0.0002]